[Event "WSTCC-50 2020"]
[Site "Prague"]
[Date "2020.03.07"]
[Round "2.47"]
[White "Mudrak, Josef"]
[Black "Jhunjhnuwala, Naresh"]
[Result "1-0"]
[ECO "A43"]
[WhiteElo "2213"]
[BlackElo "2085"]
[Annotator "ChessBase"]
[PlyCount "123"]
[EventDate "2020.03.06"]
[EventType "team-tourn"]
[EventCountry "CZE"]
[SourceTitle "playchess.com"]
[Source "ChessBase"]
[SourceQuality "1"]
[TimeControl "40/5400+30:1800+30"]

1. d4 c5 2. c3 cxd4 3. cxd4 d5 4. Nf3 Nc6 5. Nc3 Nf6 6. Bf4 e6 7. e3 Bb4 8. Bd3 O-O 9. O-O Bxc3 10. bxc3 Ne4 11. Bxe4 dxe4 12. Nd2 f5 13. f3 exf3 14. Qxf3 Qd5 15. Qg3 Rf6 16. c4 Qd7 17. Rfd1 Ne7 18. Nf3 b6 19. Ne5 Qe8 20. d5 Ng6 21. Bg5 Rf8 22. d6 Nxe5 23. Qxe5 f4 24. exf4 Rf5 25. Qe4 Bd7 26. Re1 Qc8 27. Rad1 Rb8 28. Qd4 Rc5 29. Rc1 Qc6 30. Re3 Rf8 31. Be7 Rf7 32. Re5 Rf5 33. Rxf5 Rxf5 34. Rc3 a6 35. Bd8 b5 36. cxb5 Qxb5 37. Qc4 Rd5 38. Qxb5 Bxb5 39. Be7 Rd2 40. a3 Kf7 41. Rc8 Kg6 42. h3 Kf5 43. Rc5+ Ke4 44. a4 Bxa4 45. Rc4+ Rd4 46. Rxa4 Rxa4 47. d7 Rd4 48. d8=Q Rxd8 49. Bxd8 Kxf4 50. Kf2 h5 51. g3+ Ke4 52. Ke2 Kd4 53. Bc7 Ke4 54. Bb6 e5 55. Bd8 g6 56. Bb6 g5 57. Bd8 h4 58. g4 Kf4 59. Kf2 Ke4 60. Bxg5 a5 61. Bxh4 a4 62. Be7 1-0

[Event "WSTCC-50 2020"]
[Site "Prague"]
[Date "2020.03.08"]
[Round "3.20"]
[White "Chudinovskikh, Alexander M"]
[Black "Petran, Peter"]
[Result "1/2-1/2"]
[ECO "B06"]
[WhiteElo "2139"]
[BlackElo "2268"]
[Annotator "RC"]
[PlyCount "100"]
[EventDate "2020.03.06"]
[EventType "team-tourn"]
[EventCountry "CZE"]
[SourceTitle "playchess.com"]
[Source "ChessBase"]
[SourceQuality "1"]
[TimeControl "40/5400+30:1800+30"]

1. e4 {[%emt 0:00:00]} g6 {[%emt 0:00:00]} 2. d4 {[%emt 0:00:00]} Bg7 {[%emt 0:00:00]} 3. Nc3 {[%emt 0:00:00]} c6 {[%emt 0:00:00]} 4. Bc4 {[%emt 0:04:43]} b5 {[%emt 0:01:38]} 5. Bb3 {[%emt 0:00:37]} b4 {[%emt 0:02:19]} 6. Nce2 {[%emt 0:01:01]} d5 {[%emt 0:00:16]} 7. e5 {[%emt 0:05:58]} e6 {[%emt 0:00:26]} 8. Nf3 {[%emt 0:01:47]} Nd7 {[%emt 0:00:38]} 9. a3 {[%emt 0:01:09]} bxa3 {[%emt 0:00:33]} 10. Rxa3 {[%emt 0:00:07]} c5 {[%emt 0:00:27]} 11. Bg5 {[%emt 0:02:50]} Ne7 {[%emt 0:02:16]} 12. O-O {[%emt 0:01:04]} h6 {[%emt 0:00:33]} 13. Bd2 {[%emt 0:01:06]} Nc6 {[%emt 0:04:26]} 14. Ba4 {[%emt 0:09:21]} Bb7 {[%emt 0:03:45]} 15. dxc5 {[%emt 0:09:16]} O-O {[%emt 0:04:48]} 16. Bxc6 {[%emt 0:01:40]} Bxc6 {[%emt 0:00:43]} 17. Ned4 {[%emt 0:00:09]} Rc8 {[%emt 0:08:15]} 18. b4 {[%emt 0:02:01]} Nxe5 {[%emt 0:02:10]} 19. Nxe5 {[%emt 0:04:11]} Bxe5 {[%emt 0:00:07]} 20. Nxc6 {[%emt 0:00:17]} Rxc6 {[%emt 0:00:27]} 21. Bxh6 {[%emt 0:00:50]} Qh4 {[%emt 0:03:54]} 22. f4 {[%emt 0:07:10]} Qxh6 {[%emt 0:03:41]} 23. fxe5 {[%emt 0:00:08]} Rc7 {[%emt 0:11:02]} 24. Qd4 {[%emt 0:01:29]} Rb8 {[%emt 0:01:07]} 25. c3 {[%emt 0:03:01]} Kg7 {[%emt 0:02:36]} 26. Qf4 {[%emt 0:05:12]} Qxf4 {[%emt 0:00:36]} 27. Rxf4 {[%emt 0:00:01]} Rh8 {[%emt 0:00:24]} 28. c4 {[%emt 0:03:23]} Rh5 {[%emt 0:02:07]} 29. Re3 {[%emt 0:09:01]} a5 {[%emt 0:12:26]} 30. cxd5 {[%emt 0:00:43]} exd5 {[%emt 0:01:19]} 31. bxa5 {[%emt 0:00:07]} Rxc5 {[%emt 0:00:10]} 32. a6 {[%emt 0:08:52]} Ra5 {[%emt 0:06:59]} 33. g4 {[%emt 0:00:38]} Rh8 {[%emt 0:03:29]} 34. Ref3 {[%emt 0:00:44]} Re8 {[%emt 0:13:47]} 35. Rxf7+ {[%emt 0:02:40]} Kh6 {[%emt 0:01:06]} 36. h4 {[%emt 0:07:05]} Rxa6 {[%emt 0:02:56]} 37. Kg2 {[%emt 0:05:47]} g5 {[%emt 0:03:33]} 38. R7f5 {[%emt 0:00:59]} gxh4 {[%emt 0:01:00]} 39. Kh3 {[%emt 0:00:30]} Rae6 {[%emt 0:01:15]} 40. g5+ {[%emt 0:00:00]} Kg7 {[%emt 0:00:00]} 41. Rf7+ {[%emt 0:01:50]} Kg8 {[%emt 0:00:43]} 42. Kxh4 {[%emt 0:00:38]} Rxe5 {[%emt 0:00:25]} 43. Kh5 {[%emt 0:00:08]} R8e7 {[%emt 0:01:17]} 44. Rf8+ {[%emt 0:00:59]} Kg7 {[%emt 0:00:01]} 45. R8f6 {[%emt 0:01:19]} Rd7 {[%emt 0:02:54]} 46. Rg6+ {[%emt 0:00:22]} Kh7 {[%emt 0:00:21]} 47. Rff6 {[%emt 0:00:22]} Rg7 {[%emt 0:05:41]} 48. Rxg7+ {[%emt 0:01:04]} Kxg7 {[%emt 0:00:01]} 49. Rd6 Re7 50. Rxd5 {[%emt 0:01:48]} Ra7 {[%emt 0:00:38]} 1/2-1/2

[Event "WSTCC-50 2020"]
[Site "Prague"]
[Date "2020.03.08"]
[Round "3.37"]
[White "Bartak, Vladimir"]
[Black "Janacek, Jaroslav"]
[Result "1-0"]
[ECO "A21"]
[WhiteElo "2276"]
[BlackElo "2056"]
[Annotator "RC"]
[PlyCount "101"]
[EventDate "2020.03.06"]
[EventType "team-tourn"]
[EventCountry "CZE"]
[SourceTitle "playchess.com"]
[Source "ChessBase"]
[SourceQuality "1"]
[TimeControl "40/5400+30:1800+30"]

1. c4 {[%emt 0:00:00]} e5 {[%emt 0:00:00]} 2. Nc3 {[%emt 0:00:00]} d6 {[%emt 0:00:00]} 3. d3 {[%emt 0:00:20]} f5 {[%emt 0:00:19]} 4. g3 {[%emt 0:00:22]} Nf6 {[%emt 0:00:27]} 5. Bg2 {[%emt 0:00:15]} Be7 {[%emt 0:00:26]} 6. f4 {[%emt 0:01:32]} O-O {[%emt 0:00:47]} 7. Nh3 {[%emt 0:04:46]} Qe8 {[%emt 0:02:34]} 8. O-O {[%emt 0:04:17]} Na6 {[%emt 0:02:46]} 9. Rb1 {[%emt 0:14:09]} c6 {[%emt 0:00:53]} 10. b4 {[%emt 0:01:59]} Bd7 {[%emt 0:02:43]} 11. Nf2 {[%emt 0:12:54]} Bd8 {[%emt 0:02:59]} 12. Kh1 {[%emt 0:06:22]} Bc7 {[%emt 0:00:49]} 13. e3 {[%emt 0:08:35]} Rd8 {[%emt 0:04:01]} 14. Re1 {[%emt 0:01:25]} h6 {[%emt 0:08:15]} 15. d4 {[%emt 0:10:08]} e4 {[%emt 0:01:10]} 16. b5 {[%emt 0:02:20]} cxb5 {[%emt 0:10:52]} 17. Nxb5 Bb8 18. Ba3 {[%emt 0:05:59]} Bc8 {[%emt 0:03:25]} 19. d5 {[%emt 0:02:12]} Qg6 {[%emt 0:03:01]} 20. Qd4 {[%emt 0:03:29]} b6 {[%emt 0:03:03]} 21. Rg1 {[%emt 0:01:01]} Nc5 {[%emt 0:01:22]} 22. Bb2 {[%emt 0:00:26]} a6 {[%emt 0:05:13]} 23. Na3 {[%emt 0:00:21]} Rf7 {[%emt 0:02:16]} 24. Bf1 {[%emt 0:01:08]} Ba7 {[%emt 0:03:11]} 25. Qd2 {[%emt 0:01:07]} h5 {[%emt 0:01:56]} 26. Ba1 {[%emt 0:01:26]} Ng4 {[%emt 0:00:38]} 27. Nh3 {[%emt 0:00:44]} Re7 {[%emt 0:06:56]} 28. Nc2 {[%emt 0:00:06]} Nd3 {[%emt 0:07:21]} 29. Nd4 {[%emt 0:00:05]} Bd7 {[%emt 0:01:44]} 30. Rg2 {[%emt 0:00:03]} b5 {[%emt 0:04:15]} 31. cxb5 {[%emt 0:00:02]} Bxd4 {[%emt 0:00:32]} 32. Bxd4 {[%emt 0:00:03]} Bxb5 {[%emt 0:00:37]} 33. Ng5 {[%emt 0:00:02]} Rde8 {[%emt 0:08:09]} 34. Qc2 {[%emt 0:01:24]} Nf6 {[%emt 0:03:27]} 35. a4 {[%emt 0:03:11]} Bd7 {[%emt 0:00:17]} 36. Qb3 {[%emt 0:03:46]} Nh7 {[%emt 0:05:06]} 37. h4 {[%emt 0:03:14]} Nf6 {[%emt 0:00:56]} 38. Rd2 {[%emt 0:01:15]} Ng4 {[%emt 0:00:27]} 39. Kg1 {[%emt 0:00:57]} Rc8 {[%emt 0:04:40]} 40. Qb6 {[%emt 0:00:00]} a5 {[%emt 0:00:00]} 41. Qxa5 {[%emt 0:08:46]} Qe8 {[%emt 0:02:40]} 42. Qb6 {[%emt 0:05:41]} Bxa4 {[%emt 0:01:39]} 43. Ra2 {[%emt 0:06:16]} Bc2 {[%emt 0:07:12]} 44. Rba1 {[%emt 0:00:23]} Ndf2 {[%emt 0:00:47]} 45. Ra7 {[%emt 0:06:58]} Bd3 {[%emt 0:03:09]} 46. Qxd6 {[%emt 0:00:54]} Rxa7 {[%emt 0:11:15]} 47. Rxa7 {[%emt 0:00:05]} Qf8 {[%emt 0:04:07]} 48. Qe6+ {[%emt 0:00:18]} Kh8 {[%emt 0:01:07]} 49. Qg6 {[%emt 0:01:01]} Nh3+ {[%emt 0:01:02]} 50. Nxh3 {[%emt 0:00:30]} Nf6 {[%emt 0:01:15]} 51. Rxg7 1-0

[Event "WSTCC-50 2020"]
[Site "Prague"]
[Date "2020.03.08"]
[Round "3.39"]
[White "Strnad, Josef"]
[Black "Oburka, Vladislav"]
[Result "0-1"]
[ECO "A05"]
[WhiteElo "1860"]
[BlackElo "1759"]
[Annotator "NA RC"]
[PlyCount "82"]
[EventDate "2020.03.06"]
[EventType "team-tourn"]
[EventCountry "CZE"]
[SourceTitle "playchess.com"]
[Source "ChessBase"]
[SourceQuality "1"]
[TimeControl "40/5400+30:1800+30"]

1. Nf3 {[%emt 0:00:00]} Nf6 {[%emt 0:00:00]} 2. g3 {[%emt 0:00:02]} d5 {[%emt 0:00:09]} 3. d4 {[%emt 0:00:08]} e6 {[%emt 0:00:18]} 4. Bg2 {[%emt 0:00:11]} Nbd7 {[%emt 0:00:19]} 5. b3 {[%emt 0:03:27]} b6 {[%emt 0:04:51]} 6. Bb2 {[%emt 0:00:30] D02: 1 d4 d5 2 Nf3 sidelines, including 2...Nf6 3 g3 and 2...Nf6 3 Bf4.} Bb4+ {[%emt 0:00:47]} 7. c3 {[%emt 0:00:07]} Be7 {[%emt 0:00:07]} 8. O-O {[%emt 0:00:15] [#]} O-O $146 ({Predecessor:} 8... Bb7 9. c4 O-O 10. Nc3 dxc4 11. bxc4 Ne4 12. Qc2 Nxc3 13. Bxc3 c5 14. Ne5 Bxg2 15. Kxg2 Qc7 16. Nxd7 Qxd7 17. dxc5 Bxc5 18. Rfd1 Qc6+ 19. Kg1 {½-½ (46) Szymczak,R (2081)-Alvarado Rodriguez,C (2191) Warsaw 2007}) 9. Nbd2 Bb7 {[%emt 0:02:11]} 10. Rc1 {[%emt 0:01:55]} c5 {[%emt 0:00:39]} 11. Re1 {[%emt 0:01:38]} Rc8 {[%emt 0:00:20]} 12. e3 {[%emt 0:01:26]} Re8 {[%emt 0:02:05]} 13. c4 {[%emt 0:00:48]} h6 {[%emt 0:02:29]} 14. Ne5 {[%emt 0:03:40]} Rc7 {[%emt 0:06:53]} 15. Qe2 {[%emt 0:09:39]} Qa8 {[%emt 0:11:10]} 16. Red1 {[%emt 0:05:05]} dxc4 {[%emt 0:02:11]} 17. Bxb7 {[%emt 0:00:25]} Qxb7 {[%emt 0:00:18]} 18. Ndxc4 {[%emt 0:01:34]} Rd8 {[%emt 0:06:55]} 19. f3 {[%emt 0:04:26]} Nh7 {[%emt 0:07:58]} 20. Kf2 {[%emt 0:02:02]} Nxe5 {[%emt 0:05:22]} 21. Nxe5 {[%emt 0:03:05]} Rcc8 {[%emt 0:04:39]} 22. Rc2 {[%emt 0:07:57]} Nf6 {[%emt 0:04:17]} 23. Rcd2 {[%emt 0:02:43]} Qc7 {[%emt 0:03:02]} 24. Rc1 {[%emt 0:08:04]} Qb7 {[%emt 0:00:46]} 25. e4 {[%emt 0:10:11]} cxd4 {[%emt 0:03:14]} 26. Rxc8 {[%emt 0:00:29]} Qxc8 $11 {[%emt 0:02:07]} 27. Bxd4 {[%emt 0:00:48]} Bc5 {[%emt 0:01:23]} 28. Qc4 {[%emt 0:05:33]} b5 {[%emt 0:06:47]} 29. Qxc5 {[%emt 0:07:17]} Qxc5 {[%emt 0:00:15]} 30. Bxc5 {[%emt 0:00:02]} Rxd2+ {[%emt 0:00:07]} 31. Ke3 {[%emt 0:00:10]} Rxa2 {[%emt 0:00:08]} 32. h4 {[%emt 0:00:58]} a5 {[%emt 0:01:39]} 33. Kd3 {[%emt 0:01:10]} Nh5 {[%emt 0:04:00]} 34. g4 {[%emt 0:02:23]} Nf4+ {[%emt 0:00:12]} 35. Kc3 {[%emt 0:00:27]} Ne2+ {[%emt 0:05:17]} 36. Kd3 {[%emt 0:00:53]} Nc1+ {[%emt 0:00:47]} 37. Kc3 {[%emt 0:00:24]} b4+ {[%emt 0:00:25]} 38. Kc4 {[%emt 0:00:38]} Rc2+ {[%emt 0:00:33]} 39. Kb5 {[%emt 0:00:28]} Nxb3 {[%emt 0:00:15]} 40. Bd6 {[%emt 0:02:22]} Ra2 {[%emt 0:02:39]} 41. Bc7 {[%emt 0:03:23]} Nd4+ {[%emt 0:03:39]} 0-1

[Event "WSTCC-50 2020"]
[Site "Prague"]
[Date "2020.03.08"]
[Round "3.40"]
[White "Kuda, Pavel"]
[Black "Kalvach, Ladislav"]
[Result "1/2-1/2"]
[ECO "A45"]
[WhiteElo "1421"]
[BlackElo "1773"]
[Annotator "NA RC"]
[PlyCount "43"]
[EventDate "2020.03.06"]
[EventType "team-tourn"]
[EventCountry "CZE"]
[SourceTitle "playchess.com"]
[Source "ChessBase"]
[SourceQuality "1"]
[TimeControl "40/5400+30:1800+30"]

1. d4 {[%emt 0:00:00]} Nf6 {[%emt 0:00:00]} 2. Bf4 {[%emt 0:00:28]} e6 {[%emt 0:00:00]} 3. e3 {[%emt 0:00:15]} c5 {[%emt 0:00:00]} 4. c3 {[%emt 0:02:21]} Be7 {[%emt 0:01:14]} 5. Nf3 {[%emt 0:00:39]} Nc6 {[%emt 0:00:33]} 6. h3 {[%emt 0:02:14]} a6 {[%emt 0:01:31]} 7. Bd3 {[%emt 0:00:17]} d5 {[%emt 0:01:01]} 8. Nbd2 {[%emt 0:02:54]} c4 {[%emt 0:01:58]} 9. Bb1 {[%emt 0:03:56]} b5 {[%emt 0:01:16]} 10. a3 {[%emt 0:16:45]} Bb7 {[%emt 0:02:08]} 11. Ne5 {[%emt 0:03:06]} Nxe5 {[%emt 0:10:32]} 12. Bxe5 {[%emt 0:02:20]} Bd6 {[%emt 0:05:24]} 13. Qf3 {[%emt 0:09:09]} Bxe5 {[%emt 0:08:25]} 14. dxe5 {[%emt 0:00:21]} Nd7 {[%emt 0:01:01]} 15. Qg3 {[%emt 0:01:32]} g6 {[%emt 0:10:18]} 16. Nf3 {[%emt 0:03:10]} Qe7 {[%emt 0:04:10]} 17. Nd4 {[%emt 0:10:10]} Nc5 {[%emt 0:12:31]} 18. f3 {[%emt 0:10:05]} Rc8 {[%emt 0:01:16]} 19. Bc2 {[%emt 0:00:59]} O-O {[%emt 0:03:57]} 20. h4 {[%emt 0:00:52]} Kh8 {[%emt 0:10:36]} 21. Qg5 {[%emt 0:09:39]} Qxg5 {[%emt 0:02:21]} 22. hxg5 {[%emt 0:00:11]} 1/2-1/2

[Event "WSTCC-50 2020"]
[Site "Prague"]
[Date "2020.03.09"]
[Round "4.19"]
[White "Fatalibekova, Elena"]
[Black "Cejkova, Miroslava"]
[Result "1-0"]
[ECO "C41"]
[WhiteElo "2158"]
[BlackElo "1998"]
[Annotator "ChessBase"]
[PlyCount "111"]
[EventDate "2020.03.06"]
[EventType "team-tourn"]
[EventCountry "CZE"]
[SourceTitle "playchess.com"]
[Source "ChessBase"]
[SourceQuality "1"]
[TimeControl "40/5400+30:1800+30"]

1. e4 {[%emt 0:00:00]} e5 {[%emt 0:00:00]} 2. Nf3 {[%emt 0:00:00]} d6 {[%emt 0:00:00]} 3. d4 {[%emt 0:00:00]} Nd7 {[%emt 0:01:31]} 4. Bc4 {[%emt 0:00:46]} c6 {[%emt 0:00:25]} 5. O-O {[%emt 0:00:40]} Be7 {[%emt 0:01:14]} 6. Qe2 {[%emt 0:01:05]} h6 {[%emt 0:03:53]} 7. a4 {[%emt 0:09:47]} Ngf6 {[%emt 0:01:39]} 8. Nc3 {[%emt 0:00:33]} Qc7 {[%emt 0:01:56]} 9. dxe5 {[%emt 0:01:28]} dxe5 {[%emt 0:00:09]} 10. Nh4 {[%emt 0:02:06]} Nb6 {[%emt 0:31:35]} 11. Bb3 {[%emt 0:00:17]} g5 {[%emt 0:00:31]} 12. a5 {[%emt 0:12:39]} gxh4 {[%emt 0:07:04]} 13. axb6 {[%emt 0:00:02]} Qxb6 {[%emt 0:00:14]} 14. Be3 {[%emt 0:00:02]} Qc7 {[%emt 0:06:44]} 15. Bxa7 {[%emt 0:01:36]} b5 {[%emt 0:02:15]} 16. Bb6 {[%emt 0:07:57]} Qb7 {[%emt 0:00:08]} 17. Rxa8 {[%emt 0:00:15]} Qxa8 {[%emt 0:00:04]} 18. Bc7 {[%emt 0:00:31]} h3 {[%emt 0:04:02]} 19. Bxe5 {[%emt 0:00:56]} hxg2 {[%emt 0:00:15]} 20. Rd1 {[%emt 0:00:50]} Rg8 {[%emt 0:04:00]} 21. Bxf6 {[%emt 0:01:26]} Bxf6 {[%emt 0:00:35]} 22. e5 {[%emt 0:00:01]} Be7 {[%emt 0:01:39]} 23. e6 {[%emt 0:00:01]} fxe6 {[%emt 0:04:56]} 24. Bxe6 {[%emt 0:10:36]} Bxe6 {[%emt 0:02:29]} 25. Qxe6 {[%emt 0:00:01]} Rg7 {[%emt 0:01:15]} 26. Qxh6 {[%emt 0:00:53]} Kf7 {[%emt 0:02:44]} 27. Re1 {[%emt 0:03:36]} Bf6 {[%emt 0:02:56]} 28. Ne4 {[%emt 0:00:31]} Qd8 {[%emt 0:07:04]} 29. Qxf6+ {[%emt 0:00:58]} Qxf6 {[%emt 0:00:07]} 30. Nxf6 {[%emt 0:00:02]} Kxf6 {[%emt 0:00:07]} 31. Re3 {[%emt 0:00:02]} b4 {[%emt 0:03:08]} 32. Re4 {[%emt 0:02:07]} c5 {[%emt 0:04:03]} 33. Rc4 {[%emt 0:00:54]} Rg5 {[%emt 0:04:44]} 34. h4 {[%emt 0:00:15]} Rd5 {[%emt 0:00:34]} 35. Kxg2 {[%emt 0:00:10]} Ke6 {[%emt 0:00:26]} 36. Kg3 {[%emt 0:00:59]} Kd6 {[%emt 0:01:15]} 37. b3 {[%emt 0:00:27]} Ke6 {[%emt 0:00:39]} 38. Kg4 {[%emt 0:01:13]} Kf6 {[%emt 0:00:40]} 39. f4 {[%emt 0:03:03]} Kg6 {[%emt 0:00:15]} 40. Re4 {[%emt 0:00:00]} Rd2 {[%emt 0:00:00]} 41. h5+ {[%emt 0:04:31]} Kg7 {[%emt 0:00:28]} 42. Rc4 {[%emt 0:00:36]} Rd5 {[%emt 0:06:02]} 43. f5 {[%emt 0:00:39]} Kh6 {[%emt 0:01:17]} 44. Rf4 {[%emt 0:00:31]} Kg7 {[%emt 0:06:43]} 45. Kg5 {[%emt 0:01:14]} Rd2 {[%emt 0:00:54]} 46. h6+ {[%emt 0:00:39]} Kh7 {[%emt 0:00:21]} 47. Rc4 {[%emt 0:01:53]} Rg2+ {[%emt 0:00:30]} 48. Kf6 {[%emt 0:00:01]} Rf2 {[%emt 0:03:29]} 49. Rxc5 {[%emt 0:03:38]} Kxh6 {[%emt 0:00:11]} 50. Kf7 {[%emt 0:00:52]} Rd2 {[%emt 0:01:25]} 51. f6 {[%emt 0:00:13]} Rd7+ {[%emt 0:00:50]} 52. Ke6 {[%emt 0:01:51]} Rb7 {[%emt 0:00:22]} 53. Rf5 {[%emt 0:09:30]} Rb6+ {[%emt 0:02:19]} 54. Kd7 {[%emt 0:00:44]} Kg6 {[%emt 0:02:41]} 55. f7 {[%emt 0:00:35]} Rb7+ {[%emt 0:00:55]} 56. Kc6 {[%emt 0:00:22]} 1-0

[Event "WSTCC-50 2020"]
[Site "Prague"]
[Date "2020.03.09"]
[Round "4.20"]
[White "Taborska, Veronika"]
[Black "Titorenko, Natalia I"]
[Result "1/2-1/2"]
[ECO "E40"]
[WhiteElo "1995"]
[BlackElo "2113"]
[Annotator "ChessBase"]
[PlyCount "70"]
[EventDate "2020.03.06"]
[EventType "team-tourn"]
[EventCountry "CZE"]
[SourceTitle "playchess.com"]
[Source "ChessBase"]
[SourceQuality "1"]
[TimeControl "40/5400+30:1800+30"]

1. d4 {[%emt 0:00:00]} Nf6 {[%emt 0:00:00]} 2. c4 {[%emt 0:00:00]} e6 {[%emt 0:00:00]} 3. Nc3 {[%emt 0:00:42]} Bb4 {[%emt 0:00:00]} 4. e3 {[%emt 0:00:07]} Nc6 {[%emt 0:00:29]} 5. Bd3 {[%emt 0:02:04]} d5 {[%emt 0:01:34]} 6. Nge2 {[%emt 0:02:54]} O-O {[%emt 0:05:16]} 7. O-O {[%emt 0:01:30]} dxc4 {[%emt 0:33:02]} 8. Bxc4 {[%emt 0:00:45]} Re8 {[%emt 0:07:14]} 9. a3 {[%emt 0:18:55]} Be7 {[%emt 0:17:13]} 10. b4 {[%emt 0:07:20]} a5 {[%emt 0:01:41]} 11. b5 {[%emt 0:00:48]} Nb8 {[%emt 0:00:02]} 12. Bb2 {[%emt 0:03:23]} Nbd7 {[%emt 0:01:42]} 13. Rc1 {[%emt 0:03:54]} Nb6 {[%emt 0:02:11]} 14. Bb3 {[%emt 0:05:30]} Bd6 {[%emt 0:02:43]} 15. h3 {[%emt 0:05:13]} Qe7 {[%emt 0:01:07]} 16. a4 {[%emt 0:07:00]} Bd7 {[%emt 0:03:40]} 17. e4 {[%emt 0:02:26]} e5 {[%emt 0:02:38]} 18. d5 Nh5 {[%emt 0:01:27]} 19. Ng3 {[%emt 0:10:45]} Nf4 {[%emt 0:04:35]} 20. Qf3 {[%emt 0:02:07]} Qg5 {[%emt 0:02:03]} 21. Nce2 {[%emt 0:02:31]} Ng6 {[%emt 0:04:49]} 22. Rc2 {[%emt 0:02:54]} Rf8 {[%emt 0:01:05]} 23. Bc1 {[%emt 0:01:21]} Qf6 {[%emt 0:03:12]} 24. Qxf6 {[%emt 0:01:57]} gxf6 {[%emt 0:00:01]} 25. Nh5 {[%emt 0:00:32]} f5 {[%emt 0:00:12]} 26. Nf6+ {[%emt 0:02:19]} Kg7 {[%emt 0:00:24]} 27. Nxd7 {[%emt 0:00:44]} Nxd7 {[%emt 0:00:01]} 28. exf5 {[%emt 0:00:24]} Ne7 {[%emt 0:00:07]} 29. g4 {[%emt 0:02:18]} Nc5 {[%emt 0:00:20]} 30. Rc3 {[%emt 0:00:39]} Nxb3 {[%emt 0:00:17]} 31. Rxb3 {[%emt 0:00:11]} Nxd5 {[%emt 0:00:06]} 32. Ng3 {[%emt 0:01:07]} f6 {[%emt 0:02:58]} 33. Ne4 {[%emt 0:01:18]} Nb6 34. Nxd6 cxd6 35. Rd1 d5 1/2-1/2

[Event "WSTCC-50 2020"]
[Site "Prague"]
[Date "2020.03.09"]
[Round "4.23"]
[White "Groh, Jiri"]
[Black "Findlay, Ian T."]
[Result "1-0"]
[ECO "A05"]
[WhiteElo "1979"]
[BlackElo "2159"]
[Annotator "ChessBase"]
[PlyCount "105"]
[EventDate "2020.03.06"]
[EventType "team-tourn"]
[EventCountry "CZE"]
[SourceTitle "playchess.com"]
[Source "ChessBase"]
[SourceQuality "1"]
[TimeControl "40/5400+30:1800+30"]

1. Nf3 {[%emt 0:00:00]} Nf6 {[%emt 0:00:00]} 2. c4 {[%emt 0:00:00]} e6 {[%emt 0:00:06]} 3. e3 {[%emt 0:00:02]} d5 {[%emt 0:00:17]} 4. Be2 {[%emt 0:00:20]} c5 {[%emt 0:00:24]} 5. d4 {[%emt 0:00:18]} dxc4 {[%emt 0:00:15]} 6. O-O {[%emt 0:00:37]} Nc6 {[%emt 0:00:07]} 7. Nc3 {[%emt 0:00:54]} a6 {[%emt 0:00:14]} 8. Bxc4 {[%emt 0:00:18]} b5 {[%emt 0:00:06]} 9. Bb3 {[%emt 0:01:10]} Bb7 {[%emt 0:00:17]} 10. a4 {[%emt 0:02:38]} c4 {[%emt 0:08:01]} 11. axb5 {[%emt 0:02:35]} axb5 {[%emt 0:00:15]} 12. Rxa8 {[%emt 0:00:06]} Bxa8 {[%emt 0:00:14]} 13. Bc2 {[%emt 0:02:06]} Qb6 {[%emt 0:06:10]} 14. b3 {[%emt 0:03:38]} cxb3 {[%emt 0:05:32]} 15. Bxb3 {[%emt 0:00:17]} Bb4 {[%emt 0:00:44]} 16. Qd3 {[%emt 0:05:28]} Bxc3 {[%emt 0:01:31]} 17. Qxc3 {[%emt 0:00:02]} O-O {[%emt 0:00:15]} 18. Bb2 {[%emt 0:04:54]} Ne4 {[%emt 0:00:41]} 19. Qd3 {[%emt 0:07:03]} Nb4 {[%emt 0:00:46]} 20. Qb1 {[%emt 0:00:51]} Qb7 {[%emt 0:05:17]} 21. d5 {[%emt 0:03:51]} Nc5 {[%emt 0:12:22]} 22. Ba3 {[%emt 0:07:09]} Nbd3 {[%emt 0:01:40]} 23. dxe6 {[%emt 0:26:52]} fxe6 {[%emt 0:00:31]} 24. Bxe6+ {[%emt 0:03:17]} Nxe6 {[%emt 0:04:54]} 25. Bxf8 {[%emt 0:09:08]} Ne5 {[%emt 0:00:42]} 26. Qb3 {[%emt 0:03:09]} Nxf3+ {[%emt 0:00:16]} 27. gxf3 {[%emt 0:00:35]} Qf7 {[%emt 0:02:59]} 28. Bd6 {[%emt 0:00:47]} Ng5 {[%emt 0:17:11]} 29. Qxf7+ {[%emt 0:00:17]} Kxf7 {[%emt 0:00:02]} 30. Rc1 {[%emt 0:02:20]} Nxf3+ {[%emt 0:00:08]} 31. Kf1 {[%emt 0:00:34]} Ke6 {[%emt 0:00:12]} 32. Bb8 {[%emt 0:01:17]} g5 {[%emt 0:02:51]} 33. Rc5 {[%emt 0:01:24]} Bd5 {[%emt 0:00:13]} 34. Ke2 {[%emt 0:01:18]} b4 {[%emt 0:01:34]} 35. Kd3 {[%emt 0:05:46]} Ne1+ {[%emt 0:00:41]} 36. Kd2 {[%emt 0:00:09]} Nf3+ {[%emt 0:00:08]} 37. Kc2 {[%emt 0:00:25]} Ne1+ {[%emt 0:00:06]} 38. Kd2 {[%emt 0:01:24]} Nf3+ {[%emt 0:00:11]} 39. Kc1 {[%emt 0:00:27]} Ne1 {[%emt 0:00:41]} 40. Rb5 {[%emt 0:00:00]} Nd3+ {[%emt 0:00:00]} 41. Kd2 {[%emt 0:01:38]} Bc4 {[%emt 0:08:27]} 42. Rxg5 {[%emt 0:03:04]} b3 {[%emt 0:00:20]} 43. Kc3 {[%emt 0:02:23]} b2 {[%emt 0:00:24]} 44. Rg1 {[%emt 0:00:06]} Ba2 {[%emt 0:00:15]} 45. Kxd3 {[%emt 0:00:13]} b1=Q+ {[%emt 0:00:12]} 46. Rxb1 {[%emt 0:00:05]} Bxb1+ {[%emt 0:00:10]} 47. Kd4 {[%emt 0:00:07]} Bc2 {[%emt 0:01:45]} 48. e4 {[%emt 0:00:23]} Bd1 {[%emt 0:07:51]} 49. Ke3 {[%emt 0:00:33]} Bc2 {[%emt 0:01:58]} 50. f4 {[%emt 0:00:19]} Bb1 {[%emt 0:00:08]} 51. Ba7 {[%emt 0:00:19]} Bc2 {[%emt 0:00:08]} 52. f5+ {[%emt 0:00:07]} Kf7 {[%emt 0:00:10]} 53. Kf4 {[%emt 0:00:07]} 1-0